[Event "Live Chess"]
[Site "Chess.com"]
[Date "2023.05.21"]
[Round "-"]
[White "smoggyrabbit"]
[Black "LL220284LL"]
[Result "1-0"]
[WhiteElo "1743"]
[BlackElo "2375"]
[TimeControl "300"]
[EndTime "16:36:06 PDT"]
[Termination "smoggyrabbit won by checkmate"]

1. d4 {[%clk 0:04:59.2]} 1... d5 {[%clk 0:04:57.4]} 2. Nf3 {[%clk 0:04:58.2]}
2... Nf6 {[%clk 0:04:56.1]} 3. e3 {[%clk 0:04:56.9]} 3... e6 {[%clk 0:04:54.9]}
4. Bd3 {[%clk 0:04:55.7]} 4... c5 {[%clk 0:04:53.6]} 5. b3 {[%clk 0:04:53.9]}
5... Be7 {[%clk 0:04:52.9]} 6. Bb2 {[%clk 0:04:52.6]} 6... Nbd7 {[%clk
0:04:51.6]} 7. O-O {[%clk 0:04:51.4]} 7... O-O {[%clk 0:04:50.3]} 8. Nbd2 {[%clk
0:04:49.6]} 8... b6 {[%clk 0:04:49.4]} 9. Ne5 {[%clk 0:04:48.3]} 9... Bb7 {[%clk
0:04:48.1]} 10. f4 {[%clk 0:04:44.8]} 10... Rc8 {[%clk 0:04:47.4]} 11. Rf3
{[%clk 0:04:23.1]} 11... Ne4 {[%clk 0:04:44]} 12. Rh3 {[%clk 0:04:12.3]} 12...
h6 {[%clk 0:04:41.2]} 13. Bxe4 {[%clk 0:03:30.5]} 13... dxe4 {[%clk 0:04:39.2]}
14. dxc5 {[%clk 0:03:16]} 14... Bxc5 {[%clk 0:04:33.7]} 15. Ng4 {[%clk
0:03:11.4]} 15... f5 {[%clk 0:04:24.1]} 16. Rxh6 {[%clk 0:01:59.9]} 16... Bxe3+
{[%clk 0:04:05.8]} 17. Nxe3 {[%clk 0:01:27.4]} 17... gxh6 {[%clk 0:04:03.6]} 18.
Qh5 {[%clk 0:01:25.2]} 18... Rf6 {[%clk 0:03:56.3]} 19. Ndc4 {[%clk 0:00:54.1]}
19... Bd5 {[%clk 0:03:37.5]} 20. Nd6 {[%clk 0:00:35.6]} 20... Rc6 {[%clk
0:03:26.4]} 21. Bxf6 {[%clk 0:00:33.9]} 21... Nxf6 {[%clk 0:03:24.3]} 22. Qg6+
{[%clk 0:00:26.1]} 22... Kh8 {[%clk 0:03:23.1]} 23. Nf7# {[%clk 0:00:22.4]} 1-0

[Event "Live Chess"]
[Site "Chess.com"]
[Date "2023.05.21"]
[Round "-"]
[White "alanmike75"]
[Black "DerbyKnight"]
[Result "1-0"]
[WhiteElo "1543"]
[BlackElo "1542"]
[TimeControl "300"]
[EndTime "16:36:17 PDT"]
[Termination "alanmike75 won by resignation"]

1. e4 {[%clk 0:04:57.5]} 1... c6 {[%clk 0:04:58.2]} 2. Nf3 {[%clk 0:04:55.7]}
2... d5 {[%clk 0:04:57.6]} 3. exd5 {[%clk 0:04:54.8]} 3... cxd5 {[%clk
0:04:56.6]} 4. Ne5 {[%clk 0:04:53.7]} 4... Nc6 {[%clk 0:04:46.1]} 5. Bb5 {[%clk
0:04:51.8]} 5... Qc7 {[%clk 0:04:44.2]} 6. d4 {[%clk 0:04:46.4]} 6... f6 {[%clk
0:04:42.8]} 7. Qh5+ {[%clk 0:04:35.4]} 7... g6 {[%clk 0:04:36.1]} 8. Nxg6 {[%clk
0:04:33.8]} 8... hxg6 {[%clk 0:04:33.6]} 9. Qxh8 {[%clk 0:04:30.4]} 9... Nh6
{[%clk 0:04:29.3]} 10. Bxh6 {[%clk 0:04:25]} 10... Qa5+ {[%clk 0:04:26.8]} 11.
Nc3 {[%clk 0:04:23]} 11... a6 {[%clk 0:04:21.9]} 12. Qxf8+ {[%clk 0:04:20.6]}
12... Kd7 {[%clk 0:04:20.4]} 13. Bxc6+ {[%clk 0:04:18.8]} 13... bxc6 {[%clk
0:04:18.7]} 14. O-O {[%clk 0:04:08.7]} 14... Bb7 {[%clk 0:04:16.9]} 15. Qg7
{[%clk 0:04:05.5]} 15... g5 {[%clk 0:04:07.6]} 16. Qg6 {[%clk 0:03:59.4]} 16...
Rh8 {[%clk 0:04:00.3]} 17. Qf5+ {[%clk 0:03:56.9]} 17... Kd8 {[%clk 0:03:56.1]}
18. Bg7 {[%clk 0:03:50]} 18... Bc8 {[%clk 0:03:54.4]} 19. Qf3 {[%clk 0:03:42]}
19... Rh7 {[%clk 0:03:52.7]} 20. Bxf6 {[%clk 0:03:39.7]} 20... exf6 {[%clk
0:03:50.5]} 21. Qxf6+ {[%clk 0:03:38.1]} 21... Kc7 {[%clk 0:03:48]} 22. Rae1
{[%clk 0:03:30.5]} 22... Kb8 {[%clk 0:03:39.6]} 23. Qxg5 {[%clk 0:03:26.4]}
23... Qc7 {[%clk 0:03:34.2]} 24. Qe5 {[%clk 0:03:25.1]} 1-0

[Event "Live Chess"]
[Site "Chess.com"]
[Date "2023.05.21"]
[Round "-"]
[White "JoshMcK"]
[Black "LodeshChess"]
[Result "1-0"]
[WhiteElo "1519"]
[BlackElo "1140"]
[TimeControl "300"]
[EndTime "16:36:18 PDT"]
[Termination "JoshMcK won by resignation"]

1. e4 {[%clk 0:04:57.2]} 1... c6 {[%clk 0:04:58.8]} 2. d4 {[%clk 0:04:55.3]}
2... d5 {[%clk 0:04:54.6]} 3. e5 {[%clk 0:04:51.6]} 3... Bf5 {[%clk 0:04:52.2]}
4. h4 {[%clk 0:04:49.3]} 4... h6 {[%clk 0:04:49.6]} 5. g4 {[%clk 0:04:36]} 5...
Bh7 {[%clk 0:04:48.4]} 6. Bd3 {[%clk 0:04:24.7]} 6... Bxd3 {[%clk 0:04:46.7]} 7.
Qxd3 {[%clk 0:04:24.6]} 7... e6 {[%clk 0:04:46.2]} 8. Nc3 {[%clk 0:04:11.8]}
8... c5 {[%clk 0:04:44.4]} 9. dxc5 {[%clk 0:04:05.8]} 9... Bxc5 {[%clk
0:04:41.4]} 10. Be3 {[%clk 0:03:55]} 10... Bxe3 {[%clk 0:04:15.5]} 11. fxe3
{[%clk 0:03:54.9]} 11... Qb6 {[%clk 0:04:12.8]} 12. Nb5 {[%clk 0:03:39.7]} 12...
Ne7 {[%clk 0:03:57.1]} 13. Nd6+ {[%clk 0:03:23.5]} 13... Kd7 {[%clk 0:03:44.6]}
14. b3 {[%clk 0:03:08.6]} 14... Nbc6 {[%clk 0:03:41.8]} 15. Nf3 {[%clk
0:03:00.6]} 15... Qb4+ {[%clk 0:03:24.7]} 16. c3 {[%clk 0:02:51.8]} 16... Qxg4
{[%clk 0:03:23.4]} 17. Qe2 {[%clk 0:02:44.4]} 17... b6 {[%clk 0:03:01.8]} 18.
Nxf7 {[%clk 0:02:36.3]} 18... Rhf8 {[%clk 0:02:42.2]} 19. Rg1 {[%clk 0:02:30]}
19... Qh5 {[%clk 0:02:14.9]} 20. Rxg7 {[%clk 0:02:22.3]} 20... Rxf7 {[%clk
0:02:13.1]} 21. Rxf7 {[%clk 0:02:16.1]} 21... Qxf7 {[%clk 0:02:11.6]} 22. O-O-O
{[%clk 0:02:07.9]} 22... Rf8 {[%clk 0:02:07]} 23. Rf1 {[%clk 0:01:52.9]} 23...
Kc7 {[%clk 0:01:42.2]} 24. Nd2 {[%clk 0:01:42.5]} 24... Qg7 {[%clk 0:01:34.6]}
25. Rxf8 {[%clk 0:01:35.5]} 25... Qxf8 {[%clk 0:01:33.5]} 26. e4 {[%clk
0:01:25]} 26... Qf4 {[%clk 0:01:16.3]} 27. c4 {[%clk 0:01:03.9]} 27... Qxe5
{[%clk 0:01:00.1]} 28. Kb1 {[%clk 0:00:50.4]} 28... Nd4 {[%clk 0:00:38.4]} 29.
Qd3 {[%clk 0:00:45]} 29... Kd6 {[%clk 0:00:19.5]} 30. exd5 {[%clk 0:00:41.3]}
30... exd5 {[%clk 0:00:19.1]} 31. cxd5 {[%clk 0:00:39.8]} 31... Nxd5 {[%clk
0:00:18.8]} 32. Nc4+ {[%clk 0:00:38.1]} 32... Ke6 {[%clk 0:00:14.6]} 33. Nxe5
{[%clk 0:00:36.8]} 33... Kxe5 {[%clk 0:00:14.2]} 34. Qh7 {[%clk 0:00:32.2]}
34... Nc3+ {[%clk 0:00:12.1]} 35. Kb2 {[%clk 0:00:30.3]} 35... Kd5 {[%clk
0:00:10.6]} 36. Kxc3 {[%clk 0:00:27.4]} 36... Ne2+ {[%clk 0:00:09.7]} 37. Kd2
{[%clk 0:00:25.8]} 37... Nf4 {[%clk 0:00:08.5]} 38. Qxh6 {[%clk 0:00:23.9]}
38... Ng2 {[%clk 0:00:06.9]} 39. Qg5+ {[%clk 0:00:19.9]} 1-0

[Event "Live Chess"]
[Site "Chess.com"]
[Date "2023.05.21"]
[Round "-"]
[White "raminguy"]
[Black "WelshTiger"]
[Result "0-1"]
[WhiteElo "1963"]
[BlackElo "2360"]
[TimeControl "300"]
[EndTime "16:36:18 PDT"]
[Termination "WelshTiger won on time"]

1. d4 {[%clk 0:04:58.9]} 1... d5 {[%clk 0:04:57.2]} 2. Nc3 {[%clk 0:04:58.2]}
2... e6 {[%clk 0:04:56.6]} 3. Bf4 {[%clk 0:04:57.4]} 3... Bd6 {[%clk 0:04:55]}
4. e3 {[%clk 0:04:56]} 4... Bxf4 {[%clk 0:04:50.3]} 5. exf4 {[%clk 0:04:55.9]}
5... a6 {[%clk 0:04:49.7]} 6. Nf3 {[%clk 0:04:54.5]} 6... Nf6 {[%clk 0:04:47]}
7. Ne5 {[%clk 0:04:53.3]} 7... c5 {[%clk 0:04:44.4]} 8. g4 {[%clk 0:04:48.6]}
8... Nc6 {[%clk 0:04:41.5]} 9. g5 {[%clk 0:04:47.2]} 9... Nd7 {[%clk 0:04:39.7]}
10. Nxc6 {[%clk 0:04:36.6]} 10... bxc6 {[%clk 0:04:38.5]} 11. h4 {[%clk
0:04:29.4]} 11... Qa5 {[%clk 0:04:34.8]} 12. a3 {[%clk 0:04:17.7]} 12... Qc7
{[%clk 0:04:17.3]} 13. Qd2 {[%clk 0:04:14.6]} 13... Rb8 {[%clk 0:04:15.3]} 14.
Rb1 {[%clk 0:04:08.4]} 14... cxd4 {[%clk 0:03:55.7]} 15. Qxd4 {[%clk 0:04:05.8]}
15... e5 {[%clk 0:03:52.8]} 16. fxe5 {[%clk 0:03:47.1]} 16... Qxe5+ {[%clk
0:03:52.7]} 17. Qxe5+ {[%clk 0:03:45.2]} 17... Nxe5 {[%clk 0:03:52.6]} 18. Be2
{[%clk 0:03:39.8]} 18... O-O {[%clk 0:03:49.8]} 19. f4 {[%clk 0:03:33.6]} 19...
Ng6 {[%clk 0:03:45.4]} 20. Kf2 {[%clk 0:03:14.6]} 20... Nxf4 {[%clk 0:03:43.4]}
21. Bf1 {[%clk 0:03:09.2]} 21... Bf5 {[%clk 0:03:41.3]} 22. Rc1 {[%clk
0:02:43.2]} 22... Rxb2 {[%clk 0:03:38.9]} 23. Bxa6 {[%clk 0:02:41.8]} 23... Bxc2
{[%clk 0:03:33.8]} 24. Ke3 {[%clk 0:02:24.1]} 24... Ne6 {[%clk 0:03:30.9]} 25.
Ne2 {[%clk 0:01:39.3]} 25... Rb3+ {[%clk 0:03:26.1]} 26. Kd2 {[%clk 0:01:34.7]}
26... Rxa3 {[%clk 0:03:23.7]} 27. Bb7 {[%clk 0:01:30.1]} 27... Be4 {[%clk
0:03:18.8]} 28. Rhg1 {[%clk 0:01:09.2]} 28... c5 {[%clk 0:03:05.5]} 29. Rg3
{[%clk 0:01:02.7]} 29... Ra2+ {[%clk 0:03:02.2]} 30. Ke1 {[%clk 0:01:01.6]}
30... c4 {[%clk 0:02:57.5]} 31. Nc3 {[%clk 0:00:35.9]} 31... Rb2 {[%clk
0:02:56]} 32. Bxd5 {[%clk 0:00:31.6]} 32... Bxd5 {[%clk 0:02:54.3]} 33. Nxd5
{[%clk 0:00:31.4]} 33... Nd4 {[%clk 0:02:46.2]} 34. Rxc4 {[%clk 0:00:20.4]}
34... Re8+ {[%clk 0:02:44.7]} 35. Re3 {[%clk 0:00:19.4]} 35... Ne6 {[%clk
0:02:22.5]} 36. h5 {[%clk 0:00:14.7]} 36... Kf8 {[%clk 0:02:18.4]} 37. g6 {[%clk
0:00:13.6]} 37... hxg6 {[%clk 0:02:17.2]} 38. hxg6 {[%clk 0:00:12.7]} 38... fxg6
{[%clk 0:02:16.3]} 39. Rce4 {[%clk 0:00:08.5]} 39... Rb1+ {[%clk 0:02:12.4]} 40.
Kf2 {[%clk 0:00:07.4]} 40... Rb2+ {[%clk 0:02:11.8]} 41. Kf1 {[%clk 0:00:06.8]}
41... Rb1+ {[%clk 0:02:10.9]} 42. Kf2 {[%clk 0:00:06.4]} 42... Rd1 {[%clk
0:02:07.1]} 43. Nf4 {[%clk 0:00:05.1]} 43... Rd2+ {[%clk 0:02:01.4]} 44. Kf1
{[%clk 0:00:04.6]} 44... Nxf4 {[%clk 0:01:58.3]} 45. Rxe8+ {[%clk 0:00:03.2]}
45... Kf7 {[%clk 0:01:57.5]} 46. R3e7+ {[%clk 0:00:02.8]} 46... Kf6 {[%clk
0:01:57]} 47. Rf8+ {[%clk 0:00:01.8]} 47... Kxe7 {[%clk 0:01:56.1]} 48. Rxf4
{[%clk 0:00:01.7]} 48... Rd5 {[%clk 0:01:52.3]} 49. Rg4 {[%clk 0:00:01.6]} 49...
Kf6 {[%clk 0:01:50.3]} 50. Rg3 {[%clk 0:00:00.8]} 50... Rf5+ {[%clk 0:01:49.1]}
0-1

[Event "Live Chess"]
[Site "Chess.com"]
[Date "2023.05.21"]
[Round "-"]
[White "AbilifyXL"]
[Black "CeladonFish"]
[Result "1-0"]
[WhiteElo "1941"]
[BlackElo "1117"]
[TimeControl "300"]
[EndTime "16:36:30 PDT"]
[Termination "AbilifyXL won by resignation"]

1. d4 {[%clk 0:04:59.7]} 1... Nf6 {[%clk 0:04:52]} 2. c4 {[%clk 0:04:59.6]} 2...
g6 {[%clk 0:04:51]} 3. Nc3 {[%clk 0:04:57.6]} 3... Bg7 {[%clk 0:04:50.4]} 4. e4
{[%clk 0:04:57]} 4... O-O {[%clk 0:04:49.9]} 5. Be2 {[%clk 0:04:56.5]} 5... b6
{[%clk 0:04:43.8]} 6. Bg5 {[%clk 0:04:54.7]} 6... Bb7 {[%clk 0:04:43.1]} 7. Qc2
{[%clk 0:04:53.2]} 7... Nc6 {[%clk 0:04:39.7]} 8. Nf3 {[%clk 0:04:51.8]} 8...
Nb4 {[%clk 0:04:38.8]} 9. Qb1 {[%clk 0:04:49.4]} 9... c6 {[%clk 0:04:25.5]} 10.
a3 {[%clk 0:04:48.1]} 10... Na6 {[%clk 0:04:23]} 11. O-O {[%clk 0:04:47.1]}
11... d5 {[%clk 0:04:21.7]} 12. e5 {[%clk 0:04:42.6]} 12... Ne4 {[%clk
0:04:20.1]} 13. Nxe4 {[%clk 0:04:41.5]} 13... dxe4 {[%clk 0:04:19.3]} 14. Qxe4
{[%clk 0:04:41.4]} 14... c5 {[%clk 0:04:18.6]} 15. Qxb7 {[%clk 0:04:40]} 1-0

[Event "Live Chess"]
[Site "Chess.com"]
[Date "2023.05.21"]
[Round "-"]
[White "mattihelenius2"]
[Black "HoarseyHorsey"]
[Result "0-1"]
[WhiteElo "489"]
[BlackElo "1433"]
[TimeControl "300"]
[EndTime "16:36:32 PDT"]
[Termination "HoarseyHorsey won by resignation"]

1. d4 {[%clk 0:04:52.2]} 1... Nf6 {[%clk 0:04:58.8]} 2. c4 {[%clk 0:04:52.1]}
2... e6 {[%clk 0:04:57.8]} 3. Nc3 {[%clk 0:04:49.7]} 3... d5 {[%clk 0:04:56.9]}
4. cxd5 {[%clk 0:04:47.8]} 4... exd5 {[%clk 0:04:55.5]} 5. Bg5 {[%clk 0:04:44]}
5... Bb4 {[%clk 0:04:54]} 6. Qd3 {[%clk 0:04:39.4]} 6... c6 {[%clk 0:04:51.3]}
7. a3 {[%clk 0:04:37.8]} 7... Be7 {[%clk 0:04:48.5]} 8. Bxf6 {[%clk 0:04:32.6]}
8... Bxf6 {[%clk 0:04:47.3]} 9. e3 {[%clk 0:04:30.7]} 9... O-O {[%clk
0:04:41.7]} 10. Nf3 {[%clk 0:04:30.6]} 10... Bg4 {[%clk 0:04:39.9]} 11. h3
{[%clk 0:04:29.1]} 11... Bh5 {[%clk 0:04:28.7]} 12. Be2 {[%clk 0:04:27.7]} 12...
Bg6 {[%clk 0:04:27.2]} 13. Ne5 {[%clk 0:04:25.8]} 13... Bxd3 {[%clk 0:04:25.4]}
14. Bxd3 {[%clk 0:04:23.2]} 14... Bxe5 {[%clk 0:04:24.1]} 15. O-O {[%clk
0:04:18.8]} 15... Bf6 {[%clk 0:04:20.4]} 16. Rae1 {[%clk 0:04:18.7]} 16... Re8
{[%clk 0:04:13.9]} 17. Ne2 {[%clk 0:04:12.7]} 17... Nd7 {[%clk 0:04:09.2]} 18.
Nf4 {[%clk 0:04:11.7]} 18... Bg5 {[%clk 0:04:07.8]} 19. b4 {[%clk 0:03:54.4]}
19... Bxf4 {[%clk 0:04:03.7]} 20. exf4 {[%clk 0:03:51.9]} 20... Qf6 {[%clk
0:04:00.5]} 21. Rxe8+ {[%clk 0:03:50]} 21... Rxe8 {[%clk 0:03:56.9]} 22. g4
{[%clk 0:03:46.8]} 22... Qxd4 {[%clk 0:03:50]} 23. Be2 {[%clk 0:03:36.5]} 23...
Qxf4 {[%clk 0:03:45.5]} 24. Re1 {[%clk 0:03:34.8]} 24... Qd2 {[%clk 0:03:37.4]}
25. Kf1 {[%clk 0:03:32.1]} 25... Nf6 {[%clk 0:03:33.5]} 26. Bd3 {[%clk
0:03:23.5]} 26... Rxe1+ {[%clk 0:03:29.1]} 27. Kg2 {[%clk 0:03:21.6]} 27... Qxd3
{[%clk 0:03:26.7]} 0-1

[Event "Live Chess"]
[Site "Chess.com"]
[Date "2023.05.21"]
[Round "-"]
[White "EdenHazard8"]
[Black "Conradical12"]
[Result "1-0"]
[WhiteElo "1994"]
[BlackElo "1599"]
[TimeControl "300"]
[EndTime "16:36:50 PDT"]
[Termination "EdenHazard8 won by resignation"]

1. e4 {[%clk 0:04:57]} 1... e5 {[%clk 0:04:59]} 2. Nf3 {[%clk 0:04:56.3]} 2...
Nc6 {[%clk 0:04:58.4]} 3. Bb5 {[%clk 0:04:55.4]} 3... Nf6 {[%clk 0:04:57.3]} 4.
O-O {[%clk 0:04:53.6]} 4... Bc5 {[%clk 0:04:55.4]} 5. Re1 {[%clk 0:04:52.2]}
5... O-O {[%clk 0:04:54.5]} 6. d3 {[%clk 0:04:51.3]} 6... d6 {[%clk 0:04:53.7]}
7. h3 {[%clk 0:04:50.3]} 7... Be6 {[%clk 0:04:52.1]} 8. Bg5 {[%clk 0:04:48.1]}
8... h6 {[%clk 0:04:50.9]} 9. Bh4 {[%clk 0:04:46.5]} 9... a6 {[%clk 0:04:46.9]}
10. Ba4 {[%clk 0:04:44.1]} 10... Nd4 {[%clk 0:04:45.9]} 11. Nc3 {[%clk 0:04:42]}
11... b5 {[%clk 0:04:43.1]} 12. Bb3 {[%clk 0:04:40.7]} 12... Bxb3 {[%clk
0:04:40.5]} 13. axb3 {[%clk 0:04:40.6]} 13... g5 {[%clk 0:04:36.9]} 14. Nxg5
{[%clk 0:04:38.9]} 14... hxg5 {[%clk 0:04:35.3]} 15. Bxg5 {[%clk 0:04:38.8]}
15... Ne6 {[%clk 0:04:33.8]} 16. Bh4 {[%clk 0:04:36.7]} 16... Kg7 {[%clk
0:04:30]} 17. Nd5 {[%clk 0:04:35]} 17... Bxf2+ {[%clk 0:04:17.9]} 18. Kxf2
{[%clk 0:04:32.5]} 18... Nxe4+ {[%clk 0:04:16]} 19. Rxe4 {[%clk 0:04:31.2]}
19... f6 {[%clk 0:04:13.5]} 20. Qh5 {[%clk 0:04:28.7]} 20... Ng5 {[%clk
0:04:11.3]} 21. Rg4 {[%clk 0:04:22.1]} 21... c6 {[%clk 0:04:08.5]} 22. Kg1
{[%clk 0:04:17.5]} 22... cxd5 {[%clk 0:04:06.3]} 23. Bxg5 {[%clk 0:04:16.5]}
23... fxg5 {[%clk 0:04:03.5]} 24. Rxg5+ {[%clk 0:04:13.8]} 24... Kf6 {[%clk
0:04:03.1]} 25. Rf1+ {[%clk 0:04:08]} 25... Ke7 {[%clk 0:04:02.2]} 26. Rg7+
{[%clk 0:04:05.1]} 26... Ke6 {[%clk 0:04:00.1]} 27. Qg4+ {[%clk 0:04:03.9]} 1-0

[Event "Live Chess"]
[Site "Chess.com"]
[Date "2023.05.21"]
[Round "-"]
[White "toog"]
[Black "elvenstar"]
[Result "1-0"]
[WhiteElo "2582"]
[BlackElo "1559"]
[TimeControl "300"]
[EndTime "16:37:09 PDT"]
[Termination "toog won by resignation"]

1. e4 {[%clk 0:04:55.8]} 1... d5 {[%clk 0:04:58.9]} 2. exd5 {[%clk 0:04:54.9]}
2... Nf6 {[%clk 0:04:57.7]} 3. Nc3 {[%clk 0:04:54.8]} 3... e6 {[%clk 0:04:55.9]}
4. dxe6 {[%clk 0:04:53]} 4... Bxe6 {[%clk 0:04:54.9]} 5. d4 {[%clk 0:04:52.6]}
5... Bd6 {[%clk 0:04:53.8]} 6. Nf3 {[%clk 0:04:46.1]} 6... c6 {[%clk 0:04:52.8]}
7. Be2 {[%clk 0:04:45.6]} 7... O-O {[%clk 0:04:51.6]} 8. O-O {[%clk 0:04:45.5]}
8... Nbd7 {[%clk 0:04:48.7]} 9. h3 {[%clk 0:04:44.9]} 9... h6 {[%clk 0:04:47.1]}
10. Re1 {[%clk 0:04:44.1]} 10... Qc7 {[%clk 0:04:45.6]} 11. Bd3 {[%clk
0:04:42.3]} 11... Rfe8 {[%clk 0:04:44.2]} 12. Ne4 {[%clk 0:04:40.9]} 12... Nxe4
{[%clk 0:04:42.2]} 13. Bxe4 {[%clk 0:04:40.8]} 13... Bf4 {[%clk 0:04:37.1]} 14.
Bxf4 {[%clk 0:04:38.6]} 14... Qxf4 {[%clk 0:04:35.8]} 15. Qd2 {[%clk 0:04:38.5]}
15... Qc7 {[%clk 0:04:32.5]} 16. Rad1 {[%clk 0:04:35.8]} 16... Rad8 {[%clk
0:04:29.5]} 17. c3 {[%clk 0:04:33.8]} 17... Nf6 {[%clk 0:04:28]} 18. Bc2 {[%clk
0:04:32]} 18... Bd5 {[%clk 0:04:23.1]} 19. Ne5 {[%clk 0:04:30.1]} 19... Nh7
{[%clk 0:03:58.8]} 20. Qd3 {[%clk 0:04:24.8]} 20... g6 {[%clk 0:03:39.3]} 21.
Re3 {[%clk 0:04:17.5]} 21... Kg7 {[%clk 0:03:25.5]} 22. Rg3 {[%clk 0:04:14.3]}
22... Ng5 {[%clk 0:02:32.4]} 23. h4 {[%clk 0:04:09.6]} 23... Ne4 {[%clk
0:02:30.3]} 24. Rg4 {[%clk 0:04:06]} 24... Rxe5 {[%clk 0:02:21]} 25. dxe5 {[%clk
0:04:04.4]} 25... Qxe5 {[%clk 0:02:19.6]} 26. Qd4 {[%clk 0:03:58.3]} 26... Qxd4
{[%clk 0:02:09.4]} 27. Rxd4 {[%clk 0:03:58.2]} 27... Nf6 {[%clk 0:02:02.3]} 28.
Rg3 {[%clk 0:03:54.8]} 28... Re8 {[%clk 0:01:55.9]} 29. Re3 {[%clk 0:03:51.5]}
29... Rxe3 {[%clk 0:01:36.7]} 30. fxe3 {[%clk 0:03:51.4]} 30... c5 {[%clk
0:01:34.8]} 31. Rd1 {[%clk 0:03:47.6]} 31... Bc6 {[%clk 0:01:30.6]} 32. e4
{[%clk 0:03:45]} 32... Nxe4 {[%clk 0:01:18.1]} 33. Bxe4 {[%clk 0:03:44.9]} 33...
Bxe4 {[%clk 0:01:16.5]} 34. Rd7 {[%clk 0:03:44.3]} 34... Bc6 {[%clk 0:01:14.6]}
35. Rc7 {[%clk 0:03:42.2]} 35... Kf6 {[%clk 0:01:09.8]} 36. Kf2 {[%clk
0:03:41.4]} 36... Ke6 {[%clk 0:01:06.6]} 37. g3 {[%clk 0:03:41]} 37... f6 {[%clk
0:01:04.1]} 38. Ke3 {[%clk 0:03:39.7]} 38... h5 {[%clk 0:01:00.2]} 39. Rg7
{[%clk 0:03:37.3]} 39... Kf5 {[%clk 0:00:55.5]} 40. Kf2 {[%clk 0:03:31.4]} 40...
g5 {[%clk 0:00:51.6]} 41. Rh7 {[%clk 0:03:26.6]} 41... gxh4 {[%clk 0:00:43.8]}
42. Rxh5+ {[%clk 0:03:24.7]} 42... Kg6 {[%clk 0:00:39.1]} 43. Rxh4 {[%clk
0:03:24.6]} 43... f5 {[%clk 0:00:37.2]} 44. Ke3 {[%clk 0:03:23.2]} 44... Kg5
{[%clk 0:00:36]} 45. Rh8 {[%clk 0:03:20.6]} 45... Be4 {[%clk 0:00:25.2]} 46.
Rg8+ {[%clk 0:03:19]} 46... Kf6 {[%clk 0:00:22.3]} 47. Kf4 {[%clk 0:03:18.9]}
47... Kf7 {[%clk 0:00:18]} 48. Rc8 {[%clk 0:03:15.8]} 48... Ke6 {[%clk
0:00:15.7]} 49. Rxc5 {[%clk 0:03:14.2]} 1-0

[Event "Live Chess"]
[Site "Chess.com"]
[Date "2023.05.21"]
[Round "-"]
[White "DaveL5678"]
[Black "BJAW87"]
[Result "0-1"]
[WhiteElo "1011"]
[BlackElo "1441"]
[TimeControl "300"]
[EndTime "16:37:10 PDT"]
[Termination "BJAW87 won by checkmate"]

1. e4 {[%clk 0:04:58.8]} 1... c6 {[%clk 0:04:59]} 2. d4 {[%clk 0:04:56.5]} 2...
d5 {[%clk 0:04:55.2]} 3. f3 {[%clk 0:04:55.3]} 3... dxe4 {[%clk 0:04:44.6]} 4.
fxe4 {[%clk 0:04:53.3]} 4... Nd7 {[%clk 0:04:41.9]} 5. Be3 {[%clk 0:04:44.7]}
5... Ngf6 {[%clk 0:04:37]} 6. Nc3 {[%clk 0:04:42.8]} 6... e6 {[%clk 0:04:31.6]}
7. Nf3 {[%clk 0:04:36.5]} 7... Bb4 {[%clk 0:04:24]} 8. Bd3 {[%clk 0:04:31.3]}
8... O-O {[%clk 0:04:14.9]} 9. O-O {[%clk 0:04:29.3]} 9... Bxc3 {[%clk
0:04:13.9]} 10. bxc3 {[%clk 0:04:25.8]} 10... b6 {[%clk 0:04:03.9]} 11. e5
{[%clk 0:04:10.7]} 11... Nd5 {[%clk 0:04:01.8]} 12. Bd2 {[%clk 0:04:02.4]} 12...
Bb7 {[%clk 0:03:58.1]} 13. Ng5 {[%clk 0:03:59]} 13... Nxc3 {[%clk 0:03:46.4]}
14. Nxh7 {[%clk 0:03:41.8]} 14... Nxd1 {[%clk 0:03:43]} 15. Raxd1 {[%clk
0:03:36.2]} 15... c5 {[%clk 0:03:15]} 16. Ng5 {[%clk 0:03:20.4]} 16... f6 {[%clk
0:03:04.9]} 17. Nxe6 {[%clk 0:03:15.2]} 17... Qe7 {[%clk 0:03:00.1]} 18. Nxf8
{[%clk 0:03:04.9]} 18... Kxf8 {[%clk 0:03:00]} 19. Bg6 {[%clk 0:02:58.3]} 19...
cxd4 {[%clk 0:02:52.6]} 20. Rde1 {[%clk 0:02:56]} 20... Nxe5 {[%clk 0:02:40.6]}
21. Bf4 {[%clk 0:02:42.4]} 21... Kg8 {[%clk 0:02:34.9]} 22. Bxe5 {[%clk
0:02:20.4]} 22... fxe5 {[%clk 0:02:34.8]} 23. Rf5 {[%clk 0:02:13.4]} 23... e4
{[%clk 0:02:21.1]} 24. Rf7 {[%clk 0:02:05.8]} 24... Qxf7 {[%clk 0:02:17.6]} 25.
Bxf7+ {[%clk 0:02:03.6]} 25... Kxf7 {[%clk 0:02:17.5]} 26. Rf1+ {[%clk
0:02:00.7]} 26... Ke6 {[%clk 0:02:15.4]} 27. h4 {[%clk 0:01:56.2]} 27... Ba6
{[%clk 0:02:09]} 28. Rf4 {[%clk 0:01:53.5]} 28... e3 {[%clk 0:02:05.5]} 29. Rxd4
{[%clk 0:01:51]} 29... e2 {[%clk 0:02:04.1]} 30. Re4+ {[%clk 0:01:49.6]} 30...
Kd5 {[%clk 0:02:02.8]} 31. Re7 {[%clk 0:01:47.1]} 31... Rc8 {[%clk 0:01:57.1]}
32. Kf2 {[%clk 0:01:38.8]} 32... Rxc2 {[%clk 0:01:56]} 33. Ke1 {[%clk
0:01:30.5]} 33... Rxa2 {[%clk 0:01:44.8]} 34. Rxg7 {[%clk 0:01:22.9]} 34... Ra1+
{[%clk 0:01:40.7]} 35. Kd2 {[%clk 0:01:20.4]} 35... e1=Q+ {[%clk 0:01:39.7]} 36.
Kc2 {[%clk 0:01:16.8]} 36... Qe2+ {[%clk 0:01:32.2]} 37. Kb3 {[%clk 0:01:14.4]}
37... Bc4+ {[%clk 0:01:28.9]} 38. Kb4 {[%clk 0:01:12.4]} 38... Qb2# {[%clk
0:01:26.5]} 0-1